fUSD/lending_fUSD_20250623
["ID","MTS","AMOUNT","RATE_DAILY","PERIOD"]
[367082214,1750651865872,-490.0,0.0003315,7]
[367082215,1750651865881,-490.0,0.0003315,7]
[367082216,1750651865891,-1303.76,0.0003315,7]
[367082217,1750651865901,-490.0,0.0003315,7]
[367082218,1750651865911,-490.0,0.0003315,7]
[367082219,1750651865921,-490.0,0.0003315,7]
[367082220,1750651865930,-833.66,0.0003315,7]
[367082221,1750651865941,-1733.14,0.0003315,7]
[367082222,1750651865950,-263.34870109,0.0003315,7]
[367082223,1750651865960,-490.0,0.0003315,7]
[367082224,1750651865969,-1420.47,0.0003315,7]
[367082225,1750651865978,-558.11,0.0003315,7]
[367082226,1750651865988,-490.0,0.0003315,7]
[367082227,1750651865998,-1750.34,0.0003315,7]
[367082228,1750651866007,-953.65,0.0003315,7]
[367082229,1750651866016,-490.0,0.0003315,7]
[367082230,1750651866026,-2896.43,0.0003315,7]
[367082231,1750651866035,-490.0,0.0003315,7]
[367082232,1750651866045,-490.0,0.0003315,7]
[367082233,1750651866055,-490.0,0.0003315,7]
[367082234,1750651866069,-490.0,0.0003315,7]
[367082235,1750651866078,-490.0,0.0003315,7]
[367082236,1750651866088,-490.0,0.0003315,7]
[367082237,1750651866098,-596.68,0.0003315,7]
[367082238,1750651866108,-490.0,0.0003315,7]
[367082239,1750651866118,-1672.84,0.0003315,7]
[367082240,1750651866129,-490.0,0.0003315,7]
[367082241,1750651866141,-490.0,0.0003315,7]
[367082242,1750651866150,-490.0,0.0003315,7]
[367082243,1750651866160,-873.71,0.0003315,7]
[367082244,1750651866169,-490.0,0.0003315,7]
[367082245,1750651866179,-2413.53,0.0003315,7]
[367082246,1750651866189,-490.0,0.0003315,7]
[367082247,1750651866198,-1178.2,0.0003315,7]
[367082248,1750651866208,-490.0,0.0003315,7]
[367082249,1750651866218,-490.0,0.0003315,7]
[367082250,1750651866228,-490.0,0.0003315,7]
[367082251,1750651866237,-1980.52,0.0003315,7]
[367082252,1750651866247,-490.0,0.0003315,7]
[367082253,1750651866256,-620.77,0.0003315,7]
[367082254,1750651866265,-490.0,0.0003315,7]
[367082255,1750651866274,-490.0,0.0003315,7]
[367082256,1750651866284,-490.0,0.0003315,7]
[367082257,1750651866293,-490.0,0.0003315,7]
[367082258,1750651866304,-327.2059935,0.0003315,7]
[367082259,1750651866313,-490.0,0.0003315,7]
[367082260,1750651866323,-490.0,0.0003315,7]
[367082261,1750651866332,-931.61,0.0003315,7]
[367082262,1750651866342,-1170.72,0.0003315,7]
[367082263,1750651866351,-490.0,0.0003315,7]
[367082264,1750651866360,-163.2,0.0003315,7]
[367082265,1750651866371,-300.0,0.0003315,7]
[367082266,1750651866380,-490.0,0.0003315,7]
[367082267,1750651866389,-1173.45,0.0003315,7]
[367082268,1750651866399,-5000.0,0.0003315,7]
[367082269,1750651866408,-232.31683165,0.0003315,7]
[367082270,1750651866418,-490.0,0.0003315,7]
[367082271,1750651866427,-490.0,0.0003315,7]
[367082272,1750651866437,-490.0,0.0003315,7]
[367082273,1750651866448,-598.94,0.0003315,7]
[367082274,1750651866458,-1538.8,0.0003315,7]
[367082275,1750651866468,-1518.04,0.0003315,7]
[367082276,1750651866477,-490.0,0.0003315,7]
[367082277,1750651866487,-490.0,0.0003315,7]
[367082278,1750651866497,-490.0,0.0003315,7]
[367082279,1750651866507,-490.0,0.0003315,7]
[367082280,1750651866517,-490.0,0.0003315,7]
[367082281,1750651866527,-490.0,0.0003315,7]
[367082282,1750651866537,-490.0,0.0003315,7]
[367082283,1750651866845,-490.0,0.0003315,7]
[367082284,1750651866864,-2524.12,0.0003315,7]
[367082285,1750651866874,-1253.69,0.0003315,7]
[367082286,1750651866883,-490.0,0.0003315,7]
[367082287,1750651866892,-490.0,0.0003315,7]
[367082288,1750651866902,-657.69,0.0003315,7]
[367082289,1750651866912,-490.0,0.0003315,7]
[367082290,1750651866922,-1059.4,0.0003315,7]
[367082291,1750651866932,-840.96,0.0003315,7]
[367082292,1750651866941,-490.0,0.0003315,7]
[367082293,1750651866950,-490.0,0.0003315,7]
[367082294,1750651866960,-490.0,0.0003315,7]
[367082295,1750651866969,-1891.79,0.0003315,7]
[367082296,1750651866979,-534.69,0.0003315,7]
[367082297,1750651866988,-490.0,0.0003315,7]
[367082298,1750651866997,-529.23,0.0003315,7]
[367082299,1750651867006,-822.02,0.0003315,7]
[367082300,1750651867015,-1609.08,0.0003315,7]
[367082301,1750651867025,-724.63,0.0003315,7]
[367082302,1750651867034,-490.0,0.0003315,7]
[367082303,1750651867043,-490.0,0.0003315,7]
[367082304,1750651867052,-1339.61,0.0003315,7]
[367082305,1750651867063,-490.0,0.0003315,7]
[367082306,1750651867072,-1572.23,0.0003315,7]
[367082307,1750651867082,-490.0,0.0003315,7]
[367082308,1750651867091,-490.0,0.0003315,7]
[367082309,1750651867100,-634.06114308,0.0003315,7]
[367082310,1750651867110,-215269.6150462,0.0003315,2]
[367082311,1750651867119,-895.61,0.0003315,7]
[367082312,1750651867128,-860.61,0.0003315,7]
[367082313,1750651867137,-490.0,0.0003315,7]
[367082314,1750651867147,-490.0,0.0003315,7]
[367082315,1750651867156,-2665.79,0.0003315,7]
[367082316,1750651867165,-1484.2,0.0003315,7]
[367082317,1750651867174,-1861.11,0.0003315,7]
[367082318,1750651867183,-500.999836,0.0003315,7]
[367082319,1750651867192,-1003.54,0.0003315,7]
[367082320,1750651867201,-490.0,0.0003315,7]
[367082321,1750651867210,-1224.99,0.0003315,7]
[367082322,1750651867219,-490.0,0.0003315,7]
[367082323,1750651867229,-490.0,0.0003315,7]
[367082324,1750651867238,-490.0,0.0003315,7]
[367082325,1750651867247,-490.0,0.0003315,7]
[367082326,1750651867256,-1635.01,0.0003315,7]
[367082327,1750651867265,-490.0,0.0003315,7]
[367082328,1750651867275,-490.0,0.0003315,7]
[367082329,1750651867284,-490.0,0.0003315,7]
[367082330,1750651867293,-490.0,0.0003315,7]
[367082331,1750651867302,-2657.09,0.0003315,7]
[367082332,1750651867311,-1723.79,0.0003315,7]
[367082333,1750651867320,-490.0,0.0003315,7]
[367082334,1750651867329,-490.0,0.0003315,7]
[367082335,1750651867338,-825.186279,0.0003315,7]
[367082336,1750651867347,-490.0,0.0003315,7]
[367082337,1750651867356,-750.93,0.0003315,7]
[367082338,1750651867366,-490.0,0.0003315,7]
[367082339,1750651867375,-491.5488962,0.0003315,7]
[367082340,1750651867384,-490.0,0.0003315,7]
[367082341,1750651867393,-1174.24,0.0003315,7]
[367082342,1750651867402,-490.0,0.0003315,7]
[367082343,1750651867411,-2072.79,0.0003315,7]
[367082344,1750651867421,-825.186283,0.0003315,7]
[367082345,1750651867429,-490.0,0.0003315,7]
[367082346,1750651867439,-490.0,0.0003315,7]
[367082347,1750651867448,-636.1,0.0003315,7]
[367082348,1750651867457,-490.0,0.0003315,7]
[367082349,1750651867467,-490.0,0.0003315,7]
[367082350,1750651867476,-714.74,0.0003315,7]
[367082351,1750651867485,-2081.51,0.0003315,7]
[367082352,1750651867495,-811.29,0.0003315,7]
[367082353,1750651867504,-1836.6,0.0003315,7]
[367082354,1750651867513,-1772.58,0.0003315,7]
[367082355,1750651867523,-604.61674075,0.0003315,7]
[367082356,1750651867532,-1100.76,0.0003315,7]
[367082357,1750651867543,-359.12938407,0.0003315,7]
[367082358,1750651867552,-490.0,0.0003315,7]
[367082359,1750651867562,-490.0,0.0003315,7]
[367082360,1750651867573,-490.0,0.0003315,7]
[367082361,1750651867582,-490.0,0.0003315,7]
[367082362,1750651867592,-620.38,0.0003315,7]
[367082363,1750651867601,-490.0,0.0003315,7]
[367082364,1750651867611,-490.0,0.0003315,7]
[367082365,1750651867620,-627.82,0.0003315,7]
[367082366,1750651867630,-684.73,0.0003315,7]
[367082367,1750651867642,-1622.93,0.0003315,7]
[367082368,1750651867653,-490.0,0.0003315,7]
[367082369,1750651867665,-1554.53,0.0003315,7]
[367082370,1750651867676,-157.587422,0.0003315,7]
[367082371,1750651867686,-490.0,0.0003315,7]
[367082372,1750651867695,-207.76947,0.0003315,7]
[367082373,1750651867705,-490.0,0.0003315,7]
[367082374,1750651867715,-490.0,0.0003315,7]
[367082375,1750651867725,-939.1,0.0003315,7]
[367082376,1750651867734,-490.0,0.0003315,7]
[367082377,1750651867744,-938.52,0.0003315,7]
[367082378,1750651867753,-157.587425,0.0003315,7]
[367082379,1750651867763,-2040.05,0.0003315,7]
[367082380,1750651867773,-490.0,0.0003315,7]
[367082381,1750651867783,-1861.55,0.0003315,7]
[367082382,1750651867793,-490.0,0.0003315,7]
[367082383,1750651867802,-422.32794486,0.0003315,7]
[367082384,1750651867811,-500.0,0.0003315,7]
[367082385,1750651867820,-490.0,0.0003315,7]
[367082386,1750651867830,-207.769462,0.0003315,7]
[367082387,1750651867839,-17425.81,0.0003315,7]
[367082388,1750651867848,-810.08,0.0003315,7]
[367082389,1750651867858,-685.74,0.0003315,7]
[367082390,1750651867867,-1997.24,0.0003315,7]
[367082391,1750651867877,-8147.1173617,0.0003315,2]
[367082392,1750651867887,-1969.82,0.0003315,7]
[367082393,1750651867896,-490.0,0.0003315,7]
[367082394,1750651867905,-490.0,0.0003315,7]
[367082395,1750651867914,-4636.86,0.0003315,7]
[367082396,1750651867923,-490.0,0.0003315,7]
[367082397,1750651867933,-554.01,0.0003315,7]
[367082398,1750651867942,-699.42,0.0003315,7]
[367082399,1750651867952,-2357.27,0.0003315,7]
[367082400,1750651867962,-490.0,0.0003315,7]
[367082401,1750651867971,-1274.23,0.0003315,7]
[367082402,1750651867981,-490.0,0.0003315,7]
[367082403,1750651867990,-490.0,0.0003315,7]
[367082404,1750651868000,-1208.76,0.0003315,7]
[367082405,1750651868009,-490.0,0.0003315,7]
[367082406,1750651868018,-490.0,0.0003315,7]
[367082407,1750651868028,-490.0,0.0003315,7]
[367082408,1750651868037,-490.0,0.0003315,7]
[367082409,1750651868047,-536.23,0.0003315,7]
[367082410,1750651868060,-725.94,0.0003315,7]
[367082411,1750651868071,-489.7776519,0.0003315,7]
[367082412,1750651868081,-3311.62,0.0003315,7]
[367082413,1750651868091,-495.68,0.0003315,7]
[367082414,1750651868101,-699.62,0.0003315,7]
[367082415,1750651868110,-490.0,0.0003315,7]
[367082416,1750651868120,-355.83350918,0.0003315,7]
[367082417,1750651868129,-1810.34,0.0003315,7]
[367082418,1750651868139,-1285.12,0.0003315,7]
[367082419,1750651868150,-490.0,0.0003315,7]
[367082420,1750651868160,-601.96,0.0003315,7]
[367082421,1750651868169,-531.81,0.0003315,7]
[367082422,1750651868180,-1951.48,0.0003315,7]
[367082423,1750651868194,-1363.46,0.0003315,7]
[367082424,1750651868215,-771.17121,0.0003315,2]
[367082425,1750651868228,-1115.88,0.0003315,7]
[367082426,1750651868237,-7060.11,0.0003315,7]
[367082427,1750651868250,-317.09759956,0.0003315,7]
[367082428,1750651868260,-3469.87,0.0003315,7]
[367082429,1750651868269,-490.0,0.0003315,7]
[367082430,1750651868279,-395.28,0.0003315,7]
[367082431,1750651868288,-490.0,0.0003315,7]
[367082432,1750651868297,-1484.84,0.0003315,7]
[367082433,1750651868308,-417.41127677,0.0003315,7]
[367082434,1750651868317,-490.0,0.0003315,7]
[367082435,1750651868327,-508.37,0.0003315,7]
[367082436,1750651868337,-490.0,0.0003315,7]
[367082437,1750651868347,-490.0,0.0003315,7]
[367082438,1750651868360,-490.0,0.0003315,7]
[367082439,1750651868370,-744.38,0.0003315,7]
[367082440,1750651868380,-775.55,0.0003315,7]
[367082441,1750651868389,-1933.87,0.0003315,7]
[367082442,1750651868399,-1481.83,0.0003315,7]
[367082443,1750651868409,-1248.47,0.0003315,7]
[367082444,1750651868418,-992.33,0.0003315,7]
[367082445,1750651868428,-715.02,0.0003315,7]
[367082446,1750651868438,-1462.16,0.0003315,7]
[367082447,1750651868447,-609.8,0.0003315,7]
[367082448,1750651868457,-718.82,0.0003315,7]
[367082449,1750651868467,-838.62,0.0003315,7]
[367082450,1750651868477,-3239.91,0.0003315,7]
[367082451,1750651868487,-525.56,0.0003315,7]
[367082452,1750651868496,-490.0,0.0003315,7]
[367082453,1750651868506,-1485.85,0.0003315,7]
[367082454,1750651868516,-823.71,0.0003315,7]
[367082455,1750651868525,-1658.66,0.0003315,7]
[367082456,1750651868535,-490.0,0.0003315,7]
[367082457,1750651868545,-1123.79,0.0003315,7]
[367082458,1750651868555,-490.0,0.0003315,7]
[367082459,1750651868564,-989.88,0.0003315,7]
[367082460,1750651868574,-537.45,0.0003315,7]
[367082461,1750651868584,-839.8,0.0003315,7]
[367082462,1750651868593,-1762.08,0.0003315,7]
[367082463,1750651868603,-520.06,0.0003315,7]
[367082464,1750651868614,-490.0,0.0003315,7]
[367082465,1750651868624,-507.52810228,0.0003315,7]
[367082466,1750651868633,-1943.95,0.0003315,7]
[367082467,1750651868643,-490.0,0.0003315,7]
[367082468,1750651868653,-426.50691966,0.0003315,7]
[367082469,1750651868663,-2609.9,0.0003315,7]
[367082470,1750651868672,-1852.13,0.0003315,7]
[367082471,1750651868682,-490.0,0.0003315,7]
[367082472,1750651868692,-490.0,0.0003315,7]
[367082473,1750651868702,-2026.79,0.0003315,7]
[367082474,1750651868711,-490.0,0.0003315,7]
[367082475,1750651868722,-865.76,0.0003315,7]
[367082476,1750651868731,-490.0,0.0003315,7]
[367082477,1750651868740,-490.0,0.0003315,7]
[367082478,1750651868750,-2648.05,0.0003315,7]
[367082479,1750651868759,-490.0,0.0003315,7]
[367082480,1750651868768,-1863.02,0.0003315,7]
[367082481,1750651868778,-917.01,0.0003315,7]
[367082482,1750651868787,-490.0,0.0003315,7]
[367082483,1750651868797,-5346.58,0.0003315,7]
[367082484,1750651868807,-490.0,0.0003315,7]
[367082485,1750651868817,-500.87134312,0.0003315,7]
[367082486,1750651868826,-4479.73,0.0003315,7]
[367082487,1750651868836,-747.83,0.0003315,7]
[367082488,1750651868845,-1375.95,0.0003315,7]
[367082489,1750651868855,-1490.86,0.0003315,7]
[367082490,1750651868864,-506.66854113,0.0003315,7]
[367082491,1750651868874,-490.0,0.0003315,7]
[367082492,1750651868883,-650.09,0.0003315,7]
[367082493,1750651868892,-2227.68,0.0003315,7]
[367082494,1750651868902,-1859.03,0.0003315,7]
[367082495,1750651868911,-6689.48,0.0003315,7]
[367082496,1750651868921,-490.0,0.0003315,7]
[367082497,1750651868930,-1361.6,0.0003315,7]
[367082498,1750651868939,-490.0,0.0003315,7]
[367082499,1750651868949,-613.6,0.0003315,7]
[367082500,1750651868958,-493.60315556,0.0003315,7]
[367082501,1750651868968,-1438.57,0.0003315,7]
[367082502,1750651868977,-490.0,0.0003315,7]
[367082503,1750651868987,-549.1027622,0.0003315,7]
[367082504,1750651868996,-2692.41,0.0003315,7]
[367082505,1750651869006,-490.0,0.0003315,7]
[367082506,1750651869016,-458.320975,0.0003315,7]
[367082507,1750651869025,-2713.39,0.0003315,7]
[367082508,1750651869034,-2019.32,0.0003315,7]
[367082509,1750651869043,-490.0,0.0003315,7]
[367082510,1750651869052,-1916.37,0.0003315,7]
[367082511,1750651869067,-536.26,0.0003315,7]
[367082512,1750651869076,-490.0,0.0003315,7]
[367082513,1750651869085,-5931.78,0.0003315,7]
[367082514,1750651869094,-490.0,0.0003315,7]
[367082515,1750651869103,-739.62,0.0003315,7]
[367082516,1750651869189,-862.17,0.0003315,7]
[367082517,1750651869200,-1015.27,0.0003315,7]
[367082518,1750651869210,-490.0,0.0003315,7]
[367082519,1750651869219,-490.0,0.0003315,7]
[367082520,1750651869229,-3544.45,0.0003315,7]
[367082521,1750651869239,-994.76,0.0003315,7]
[367082522,1750651869249,-490.0,0.0003315,7]
[367082523,1750651869259,-1758.5,0.0003315,7]
[367082524,1750651869270,-1861.47,0.0003315,7]
[367082525,1750651869280,-490.0,0.0003315,7]
[367082526,1750651869290,-187.002381,0.0003315,7]
[367082527,1750651869299,-187.002381,0.0003315,7]
[367082528,1750651869309,-2330.31,0.0003315,7]
[367082529,1750651869318,-187.002381,0.0003315,7]
[367082530,1750651869327,-187.002381,0.0003315,7]
[367082531,1750651869336,-490.0,0.0003315,7]
[367082532,1750651869345,-3185.92,0.0003315,7]
[367082533,1750651869354,-2054.64,0.0003315,7]
[367082534,1750651869363,-490.0,0.0003315,7]
[367082535,1750651869372,-187.002381,0.0003315,7]
[367082536,1750651869381,-187.002381,0.0003315,7]
[367082537,1750651869390,-187.002381,0.0003315,7]
[367082538,1750651869400,-1375.53,0.0003315,7]
[367082539,1750651869409,-187.00237763,0.0003315,7]
[367082540,1750651869418,-490.0,0.0003315,7]
[367082541,1750651869430,-2322.2,0.0003315,7]
[367082542,1750651869442,-10423.54,0.0003315,7]
[367082543,1750651869452,-2331.29,0.0003315,7]
[367082544,1750651869462,-490.0,0.0003315,7]
[367082545,1750651869471,-1297.38,0.0003315,7]
[367082546,1750651869480,-1083.46,0.0003315,7]
[367082547,1750651869490,-494.44,0.0003315,7]
[367082548,1750651869499,-6605.52,0.0003315,7]
[367082549,1750651869509,-218.03587518,0.0003315,7]
[367082550,1750651869518,-490.0,0.0003315,7]
[367082551,1750651869527,-490.0,0.0003315,7]
[367082552,1750651869536,-848.24,0.0003315,7]
[367082553,1750651869546,-497.34246046,0.0003315,7]
[367082554,1750651869555,-982.97,0.0003315,7]
[367082555,1750651869564,-490.0,0.0003315,7]
[367082556,1750651869574,-3103.21,0.0003315,7]
[367082557,1750651869584,-1299.19,0.0003315,7]
[367082558,1750651869594,-490.0,0.0003315,7]
[367082559,1750651869603,-490.0,0.0003315,7]
[367082560,1750651869612,-1642.16,0.0003315,7]
[367082561,1750651869621,-490.0,0.0003315,7]
[367082562,1750651869631,-789.98,0.0003315,7]
[367082563,1750651869640,-1805.65,0.0003315,7]
[367082564,1750651869649,-490.0,0.0003315,7]
[367082565,1750651869658,-490.0,0.0003315,7]
[367082566,1750651869667,-1667.65,0.0003315,7]
[367082567,1750651869677,-490.0,0.0003315,7]
[367082568,1750651869686,-765.39,0.0003315,7]
[367082569,1750651869695,-491.63,0.0003315,7]
[367082570,1750651869704,-1091.48,0.0003315,7]
[367082571,1750651869713,-916.79,0.0003315,7]
[367082572,1750651869722,-490.0,0.0003315,7]
[367082573,1750651869731,-594.47,0.0003315,7]
[367082574,1750651869740,-490.0,0.0003315,7]
[367082575,1750651869750,-490.0,0.0003315,7]
[367082576,1750651869759,-1664.4,0.0003315,7]
[367082577,1750651869768,-490.0,0.0003315,7]
[367082578,1750651869777,-1078.48,0.0003315,7]
[367082579,1750651869786,-944.54,0.0003315,7]
[367082580,1750651869795,-583.2,0.0003315,7]
[367082581,1750651869805,-1465.7,0.0003315,7]
[367082582,1750651869814,-3529.7,0.0003315,7]
[367082583,1750651869823,-490.0,0.0003315,7]
[367082584,1750651869832,-576.18822895,0.0003315,7]
[367082585,1750651869842,-9567.21,0.0003315,7]
[367082586,1750651869853,-490.0,0.0003315,7]
[367082587,1750651869861,-817.78,0.0003315,7]
[367082588,1750651869871,-634.98,0.0003315,7]
[367082589,1750651869880,-531.25,0.0003315,7]
[367082590,1750651869890,-490.0,0.0003315,7]
[367082591,1750651869898,-494.68461012,0.0003315,7]
[367082592,1750651869907,-490.0,0.0003315,7]
[367082593,1750651869917,-1577.37,0.0003315,7]
[367082594,1750651869926,-1940.57,0.0003315,7]
[367082595,1750651869936,-490.0,0.0003315,7]
[367082596,1750651869945,-873.23,0.0003315,7]
[367082597,1750651869954,-2258.54,0.0003315,7]
[367082598,1750651869963,-1964.7,0.0003315,7]
[367082599,1750651869972,-623.97,0.0003315,7]
[367082600,1750651869981,-733.65,0.0003315,7]
[367082601,1750651869990,-490.0,0.0003315,7]
[367082602,1750651869999,-793.56,0.0003315,7]
[367082603,1750651870008,-1662.36,0.0003315,7]
[367082604,1750651870017,-945.04,0.0003315,7]
[367082605,1750651870027,-1632.59,0.0003315,7]
[367082606,1750651870036,-853.38,0.0003315,7]
[367082607,1750651870045,-1792.08,0.0003315,7]
[367082608,1750651870056,-579.49286009,0.0003315,7]
[367082609,1750651870069,-490.0,0.0003315,7]
[367082610,1750651870079,-4217.95,0.0003315,7]
[367082611,1750651870088,-490.0,0.0003315,7]
[367082612,1750651870097,-2012.92,0.0003315,7]
[367082613,1750651870106,-490.0,0.0003315,7]
[367082614,1750651870116,-1845.4,0.0003315,7]
[367082615,1750651870125,-1729.48,0.0003315,7]
[367082616,1750651870134,-490.0,0.0003315,7]
[367082617,1750651870144,-490.0,0.0003315,7]
[367082618,1750651870153,-651.9505137,0.0003315,2]
[367082619,1750651870162,-2093.3,0.0003315,7]
[367082620,1750651870171,-1119.709815,0.0003315,7]
[367082621,1750651870180,-917.78,0.0003315,7]
[367082622,1750651870190,-1117.48,0.0003315,7]
[367082623,1750651870199,-490.0,0.0003315,7]
[367082624,1750651870209,-1119.709815,0.0003315,7]
[367082625,1750651870217,-1176.24948,0.0003315,7]
[367082626,1750651870227,-1119.709815,0.0003315,7]
[367082627,1750651870237,-1176.24948,0.0003315,7]
[367082628,1750651870247,-1239.51,0.0003315,7]
[367082629,1750651870256,-1176.24948,0.0003315,7]
[367082630,1750651870265,-490.0,0.0003315,7]
[367082631,1750651870274,-1792.43,0.0003315,7]
[367082632,1750651870283,-534.16,0.0003315,7]
[367082633,1750651870293,-1901.47,0.0003315,7]
[367082634,1750651870303,-3111.26,0.0003315,7]
[367082635,1750651870312,-1000.0,0.0003315,7]
[367082636,1750651870322,-490.0,0.0003315,7]
[367082637,1750651870331,-1176.24948,0.0003315,7]
[367082638,1750651870340,-2040.0,0.0003315,7]
[367082639,1750651870349,-1176.24948,0.0003315,7]
[367082640,1750651870359,-490.0,0.0003315,7]
[367082641,1750651870368,-2151.67,0.0003315,7]
[367082642,1750651870377,-1176.249477,0.0003315,7]
[367082643,1750651870387,-490.0,0.0003315,7]
[367082644,1750651870396,-513.94,0.0003315,7]
[367082645,1750651870406,-1725.78,0.0003315,7]
[367082646,1750651870415,-490.0,0.0003315,7]
[367082647,1750651870425,-490.0,0.0003315,7]
[367082648,1750651870434,-736.15,0.0003315,7]
[367082649,1750651870444,-1080.28,0.0003315,7]
[367082650,1750651870454,-490.0,0.0003315,7]
[367082651,1750651870463,-2501.08,0.0003315,7]
[367082652,1750651870472,-1119.709815,0.0003315,7]
[367082653,1750651870482,-490.0,0.0003315,7]
[367082654,1750651870492,-500.25213793,0.0003315,7]
[367082655,1750651870501,-1119.709815,0.0003315,7]
[367082656,1750651870511,-490.0,0.0003315,7]
[367082657,1750651870520,-1410.57,0.0003315,7]
[367082658,1750651870529,-1119.709813,0.0003315,7]
[367082659,1750651870539,-967.78,0.0003315,7]
[367082660,1750651870549,-300.0,0.0003315,7]
[367082661,1750651870561,-490.0,0.0003315,7]
[367082662,1750651870570,-490.0,0.0003315,7]
[367082663,1750651870580,-1693.69,0.0003315,7]
[367082664,1750651870590,-490.0,0.0003315,7]
[367082665,1750651870599,-832.86,0.0003315,7]
[367082666,1750651870608,-257.21205508,0.0003315,7]
[367082667,1750651870618,-915.92,0.0003315,7]
[367082668,1750651870627,-4277.0,0.0003315,7]
[367082669,1750651870638,-490.0,0.0003315,7]
[367082670,1750651870648,-1810.2,0.0003315,7]
[367082671,1750651870657,-1559.54,0.0003315,7]
[367082672,1750651870666,-490.0,0.0003315,7]
[367082673,1750651870676,-1819.11,0.0003315,7]
[367082674,1750651870685,-1730.9,0.0003315,7]
[367082675,1750651870696,-409.94200811,0.0003315,7]
[367082676,1750651870705,-2817.57,0.0003315,7]
[367082677,1750651870715,-1597.01,0.0003315,7]
[367082678,1750651870724,-490.0,0.0003315,7]
[367082679,1750651870734,-825.86,0.0003315,7]
[367082680,1750651870743,-365.25958395,0.0003315,7]
[367082681,1750651870752,-12777.66,0.0003315,7]
[367082682,1750651870761,-32952.05,0.0003315,7]
[367082683,1750651870771,-490.0,0.0003315,7]
[367082684,1750651870780,-490.0,0.0003315,7]
[367082685,1750651870790,-1743.87,0.0003315,7]
[367082686,1750651870799,-1416.72,0.0003315,30]
[367082687,1750651870810,-1375.9,0.0003315,7]
[367082688,1750651870819,-492.23430125,0.0003315,7]
[367082689,1750651870828,-490.0,0.0003315,7]
[367082690,1750651870838,-2474.88,0.0003315,7]
[367082691,1750651870847,-490.0,0.0003315,7]
[367082692,1750651870857,-4057.33,0.0003315,7]
[367082693,1750651870865,-306.52973999,0.0003315,7]
[367082694,1750651870875,-490.0,0.0003315,7]
[367082695,1750651870884,-490.0,0.0003315,7]
[367082696,1750651870894,-2082.79,0.0003315,7]
[367082697,1750651870902,-5349.15,0.0003315,7]
[367082698,1750651870912,-648.33,0.0003315,7]
[367082699,1750651870921,-1273.81,0.0003315,7]
[367082700,1750651870930,-412.35753251,0.0003315,7]
[367082701,1750651870939,-490.0,0.0003315,7]
[367082702,1750651870948,-490.0,0.0003315,7]
[367082703,1750651870958,-717.07,0.0003315,7]
[367082704,1750651870967,-969.96,0.0003315,7]
[367082705,1750651870976,-626.15,0.0003315,7]
[367082706,1750651870986,-490.0,0.0003315,7]
[367082707,1750651870995,-1596.89,0.0003315,7]
[367082708,1750651871004,-490.0,0.0003315,7]
[367082709,1750651871013,-817.91,0.0003315,7]
[367082710,1750651871023,-2637.13,0.0003315,7]
[367082711,1750651871032,-1994.83,0.0003315,7]
[367082712,1750651871042,-1629.62,0.0003315,7]
[367082713,1750651871052,-3559.55,0.0003315,7]